fUSD/lending_fUSD_20240408
["ID","MTS","AMOUNT","RATE_DAILY","PERIOD"]
[321901149,1712599845879,-184.60206557,0.00025126,4]
[321901150,1712599845890,-150.0,0.00025126,4]
[321901151,1712599845900,-9162.03595452,0.00025159,2]
[321901152,1712599845909,-152.73989447,0.00025179,2]
[321901153,1712599845920,-153.80423254,0.00025194,2]
[321901154,1712599845930,-1302.75539241,0.00025215,2]
[321901155,1712599845940,-152.42546696,0.00025229,2]
[321901156,1712599845950,-152.42546696,0.0002523,2]
[321901157,1712599845959,-153.80423254,0.0002525,2]
[321901158,1712599845969,-308.44571376,0.00025286,2]
[321901159,1712599845979,-334.82049534,0.00025338,2]
[321901160,1712599845988,-152.32963547,0.00025367,2]
[321901161,1712599845997,-150.54794341,0.00025376,2]
[321901162,1712599846006,-151.0,0.00025398,7]
[321901163,1712599846016,-151.0,0.00025398,7]
[321901164,1712599846025,-151.0,0.00025398,2]
[321901165,1712599846035,-151.0,0.00025398,7]
[321901166,1712599846043,-230.066298,0.00025398,7]
[321901167,1712599846053,-151.0,0.00025398,7]
[321901168,1712599846062,-151.0,0.00025398,7]
[321901169,1712599846072,-151.0,0.00025398,7]
[321901170,1712599846081,-225.019287,0.00025398,7]
[321901171,1712599846090,-151.0,0.00025398,7]
[321901172,1712599846099,-151.0,0.00025398,7]
[321901173,1712599846108,-312.259531,0.00025398,7]
[321901174,1712599846119,-312.259531,0.00025398,7]
[321901175,1712599846128,-283.37207,0.00025398,7]
[321901176,1712599846137,-283.37207,0.00025398,7]
[321901177,1712599846146,-151.0,0.00025398,7]
[321901178,1712599846156,-151.0,0.00025398,7]
[321901179,1712599846165,-151.0,0.00025398,7]
[321901180,1712599846174,-151.0,0.00025398,7]
[321901181,1712599846184,-170.080145,0.00025398,7]
[321901182,1712599846193,-170.080145,0.00025398,7]
[321901183,1712599846203,-151.0,0.00025398,7]
[321901184,1712599846212,-222.073694,0.00025398,7]
[321901185,1712599846221,-222.073694,0.00025398,7]
[321901186,1712599846231,-151.0,0.00025398,7]
[321901187,1712599846241,-151.0,0.00025398,7]
[321901188,1712599846250,-23337.8217,0.00025398,2]
[321901189,1712599846259,-159.402562,0.00025432,7]
[321901190,1712599846269,-159.402562,0.00025432,7]
[321901191,1712599846279,-151.0,0.00025458,7]
[321901192,1712599846288,-151.0,0.00025458,7]
[321901193,1712599846298,-151.0,0.00025458,7]
[321901194,1712599846307,-151.0,0.00025458,7]
[321901195,1712599846316,-151.0,0.00025458,7]
[321901196,1712599846325,-15314.15534542,0.00025458,2]
[321901197,1712599846334,-152.73989447,0.00025463,2]
[321901198,1712599846343,-271.691421,0.0002547,7]
[321901199,1712599846352,-151.0,0.0002547,7]
[321901200,1712599846363,-178.422801,0.0002547,7]
[321901201,1712599846372,-178.422801,0.0002547,7]
[321901202,1712599846382,-151.0,0.00025476,7]
[321901203,1712599846391,-196.6596664,0.0002549,2]
[321901204,1712599846400,-1670.67850086,0.00025498,2]
[321901205,1712599846409,-103380.35848474,0.000255,3]
[321901206,1712599846419,-159.402562,0.000255,7]
[321901207,1712599846428,-159.402562,0.000255,7]
[321901208,1712599846437,-151.0,0.000255,7]
[321901209,1712599846446,-151.0,0.000255,2]
[321901210,1712599846456,-151.0,0.000255,7]
[321901211,1712599846466,-151.0,0.000255,7]
[321901212,1712599846475,-151.0,0.000255,7]
[321901213,1712599846484,-312.259531,0.000255,7]
[321901214,1712599846494,-312.259531,0.000255,7]
[321901215,1712599846503,-283.37207,0.000255,7]
[321901216,1712599846512,-283.37207,0.000255,7]
[321901217,1712599846521,-151.0,0.000255,7]
[321901218,1712599846531,-151.0,0.000255,7]
[321901219,1712599846540,-151.0,0.000255,7]
[321901220,1712599846549,-151.0,0.000255,7]
[321901221,1712599846558,-170.080145,0.000255,7]
[321901222,1712599846568,-170.080145,0.000255,7]
[321901223,1712599846578,-151.0,0.000255,7]
[321901224,1712599846587,-222.073694,0.000255,7]
[321901225,1712599846597,-222.073694,0.000255,7]
[321901226,1712599846607,-151.0,0.000255,7]
[321901227,1712599846617,-150.0,0.00025591,4]
[321901228,1712599846626,-196.6596664,0.00025625,2]
[321901229,1712599846636,-152.42546696,0.00025686,2]
[321901230,1712599846645,-308.44571376,0.00025741,2]
[321901231,1712599846655,-152.73989447,0.00025748,2]
[321901232,1712599846664,-500.0,0.0002584,2]
[321901233,1712599846673,-1500.0,0.0002584,2]
[321901234,1712599846683,-1000.0,0.0002584,2]
[321901235,1712599846692,-151.0,0.0002584,7]
[321901236,1712599846702,-151.0,0.0002584,7]
[321901237,1712599846712,-550.45620884,0.00025861,2]
[321901238,1712599846721,-150.54794341,0.00025881,2]
[321901239,1712599846730,-178.3726744,0.00025884,2]
[321901240,1712599846740,-9214.9128172,0.00025886,4]
[321901241,1712599846749,-178.422801,0.00025886,7]
[321901242,1712599846759,-178.422801,0.00025886,7]
[321901243,1712599846769,-151.0,0.00025886,7]
[321901244,1712599846778,-151.0,0.00025886,7]
[321901245,1712599846787,-151.0,0.00025886,7]
[321901246,1712599846797,-800.0,0.000259,9]
[321901247,1712599846806,-1000.0,0.000259,2]
[321901248,1712599846815,-759.233,0.00025907,2]
[321901249,1712599846824,-2455.0,0.00025907,2]
[321901250,1712599846837,-5749.544,0.00025907,2]
[321901251,1712599846847,-16992.836,0.00025907,2]
[321901252,1712599846857,-152.42546696,0.0002592,2]
[321901253,1712599846867,-15314.15534542,0.00025962,2]
[321901254,1712599846877,-200.0,0.00025984,2]
[321901255,1712599846886,-500.0,0.00025984,2]
[321901256,1712599846896,-200.0,0.00025984,2]
[321901257,1712599846905,-262.93477033,0.00025998,2]
[321901258,1712599846915,-6003.01113573,0.00025999,2]
[321901259,1712599846925,-10999.999997,0.00026,2]
[321901260,1712599846934,-97440.09044347,0.00026,3]
[321901261,1712599846944,-178.422801,0.00026,7]
[321901262,1712599846953,-178.422801,0.00026,7]
[321901263,1712599846963,-151.0,0.00026,7]
[321901264,1712599846972,-159.402562,0.00026,7]
[321901265,1712599846981,-159.402562,0.00026,7]
[321901266,1712599846991,-151.0,0.00026,7]
[321901267,1712599847001,-151.0,0.00026,2]
[321901268,1712599847010,-151.0,0.00026,7]
[321901269,1712599847019,-151.0,0.00026,7]
[321901270,1712599847028,-151.0,0.00026,7]
[321901271,1712599847037,-312.259531,0.00026,7]
[321901272,1712599847047,-312.259531,0.00026,7]
[321901273,1712599847056,-283.37207,0.00026,7]
[321901274,1712599847065,-283.37207,0.00026,7]
[321901275,1712599847074,-151.0,0.00026,7]
[321901276,1712599847083,-151.0,0.00026,7]
[321901277,1712599847092,-151.0,0.00026,7]
[321901278,1712599847101,-151.0,0.00026,7]
[321901279,1712599847110,-151.0,0.00026,7]
[321901280,1712599847121,-151.0,0.00026,7]
[321901281,1712599847130,-151.0,0.00026,7]
[321901282,1712599847140,-170.080145,0.00026,7]
[321901283,1712599847149,-170.080145,0.00026,7]
[321901284,1712599847158,-151.0,0.00026,7]
[321901285,1712599847168,-222.073694,0.00026,7]
[321901286,1712599847177,-222.073694,0.00026,7]
[321901287,1712599847186,-151.0,0.00026,7]
[321901288,1712599847195,-9162.03595452,0.00026011,2]
[321901289,1712599847205,-152.73989447,0.00026032,2]
[321901290,1712599847214,-150.0,0.00026057,4]
[321901291,1712599847224,-162.74534146,0.00026059,2]
[321901292,1712599847233,-1302.75539241,0.00026078,2]
[321901293,1712599847244,-151.41342262,0.00026116,2]
[321901294,1712599847254,-196.6596664,0.00026202,2]
[321901295,1712599847263,-231.18304422,0.00026208,2]
[321901296,1712599847272,-246.55728168,0.0002621,2]
[321901297,1712599847281,-150.0,0.00026223,2]
[321901298,1712599847291,-152.42546696,0.00026251,2]
[321901299,1712599847300,-334.82049534,0.00026273,2]
[321901300,1712599847310,-153.81056931,0.00026302,2]
[321901301,1712599847319,-178.37267438,0.00026306,2]
[321901302,1712599847328,-152.73989447,0.00026317,2]
[321901303,1712599847338,-334.82049534,0.00026325,2]
[321901304,1712599847347,-151.41342262,0.00026338,2]
[321901305,1712599847357,-500.0,0.00026388,2]
[321901306,1712599847367,-1500.0,0.00026388,2]
[321901307,1712599847376,-1000.0,0.00026388,2]
[321901308,1712599847385,-1000.0,0.000264,2]
[321901309,1712599847395,-334.82049534,0.00026409,2]
[321901310,1712599847405,-152.42546696,0.00026436,2]
[321901311,1712599847415,-15314.15534542,0.00026466,2]
[321901312,1712599847424,-334.82049534,0.00026475,2]
[321901313,1712599847434,-167.79839733,0.00026495,2]
[321901314,1712599847443,-1000.0,0.000265,2]
[321901315,1712599847453,-152.0,0.0002651,4]
[321901316,1712599847462,-150.0,0.00026522,4]
[321901317,1712599847471,-150.0,0.00026522,4]
[321901318,1712599847481,-150.0,0.00026522,4]
[321901319,1712599847489,-1000.0,0.00026548,2]
[321901320,1712599847499,-246.55728168,0.00026572,2]
[321901321,1712599847508,-150.0,0.00026582,2]
[321901322,1712599847517,-152.42546696,0.00026599,2]
[321901323,1712599847526,-152.73989447,0.00026601,2]
[321901324,1712599847536,-11747.021145,0.0002661,2]
[321901325,1712599847545,-1153.84,0.00026628,2]
[321901326,1712599847555,-150.0,0.000267,2]
[321901327,1712599847564,-481.0,0.000267,10]
[321901328,1712599847573,-150.0,0.000267,2]
[321901329,1712599847583,-394.0,0.000267,2]
[321901330,1712599847592,-187.0,0.000267,10]
[321901331,1712599847602,-150.0,0.000267,2]
[321901332,1712599847611,-150.0,0.000267,2]
[321901333,1712599847623,-1100.0,0.000267,9]
[321901334,1712599847632,-178.37267438,0.00026728,2]
[321901335,1712599847641,-552.39,0.00026748,2]
[321901336,1712599847651,-1107.01368772,0.00026783,2]
[321901337,1712599847660,-4310.90021658,0.00026784,2]
[321901338,1712599847670,-155.97526314,0.00026784,2]
[321901339,1712599847679,-360.84008166,0.00026784,2]
[321901340,1712599847689,-156.97520715,0.00026784,2]
[321901341,1712599847698,-2113.17496561,0.00026785,2]
[321901342,1712599847707,-351.52183684,0.00026785,10]
[321901343,1712599847717,-205.75093505,0.00026787,2]
[321901344,1712599847727,-217.34488466,0.00026787,2]
[321901345,1712599847736,-906.4142451,0.00026787,2]
[321901346,1712599847746,-206.59266165,0.00026794,2]
[321901347,1712599847755,-5825.99102334,0.00026794,2]
[321901348,1712599847765,-779.22607251,0.00026795,2]
[321901349,1712599847774,-196.6596664,0.00026796,2]
[321901350,1712599847783,-252.41374178,0.00026799,2]
[321901351,1712599847793,-1014.0,0.000268,2]
[321901352,1712599847802,-1400.0,0.000268,9]
[321901353,1712599847811,-157.87760917,0.00026811,2]
[321901354,1712599847820,-150.0,0.00026821,2]
[321901355,1712599847830,-550.45620884,0.00026853,3]
[321901356,1712599847840,-225.0,0.0002686,10]
[321901357,1712599847850,-9162.03595452,0.00026863,2]
[321901358,1712599847859,-152.73989447,0.00026886,2]
[321901359,1712599847869,-3880.73647925,0.00026897,2]
[321901360,1712599847878,-158.70106662,0.00026897,2]
[321901361,1712599847888,-266.40935964,0.00026897,2]
[321901362,1712599847898,-188.69443163,0.00026897,2]
[321901363,1712599847907,-166.94364196,0.00026897,2]
[321901364,1712599847917,-864.04451331,0.000269,2]
[321901365,1712599847926,-31277.87521176,0.000269,3]
[321901366,1712599847935,-178.422801,0.000269,7]
[321901367,1712599847944,-178.422801,0.000269,7]
[321901368,1712599847953,-251.363033,0.000269,7]
[321901369,1712599847962,-159.402562,0.000269,7]
[321901370,1712599847971,-159.402562,0.000269,7]
[321901371,1712599847980,-151.0,0.000269,7]
[321901372,1712599847989,-4522.03409797,0.000269,2]
[321901373,1712599847998,-151.0,0.000269,7]
[321901374,1712599848007,-151.0,0.000269,7]
[321901375,1712599848016,-151.0,0.000269,7]
[321901376,1712599848025,-200.0,0.000269,9]
[321901377,1712599848035,-1000.0,0.000269,2]
[321901378,1712599848044,-522.54674378,0.000269,2]
[321901379,1712599848053,-172.71494339,0.000269,2]
[321901380,1712599848062,-192.9148771,0.000269,2]
[321901381,1712599848071,-193.72108383,0.000269,2]
[321901382,1712599848079,-151.0,0.000269,7]
[321901383,1712599848091,-151.0,0.00026904,2]
[321901384,1712599848101,-181.64587544,0.00026919,2]
[321901385,1712599848110,-334.82049534,0.00026939,2]
[321901386,1712599848120,-312.259531,0.00026941,7]
[321901387,1712599848221,-312.259531,0.00026941,7]
[321901388,1712599848231,-283.37207,0.00026941,7]
[321901389,1712599848240,-283.37207,0.00026941,7]
[321901390,1712599848250,-1302.75539241,0.00026941,2]
[321901391,1712599848259,-246.55728168,0.00026962,2]
[321901392,1712599848269,-150.0,0.00026969,2]
[321901393,1712599848278,-15314.15534542,0.0002697,2]
[321901394,1712599848288,-176.084715,0.0002697,7]
[321901395,1712599848297,-151.0,0.0002697,7]
[321901396,1712599848307,-151.0,0.0002697,7]
[321901397,1712599848317,-151.0,0.0002697,7]
[321901398,1712599848326,-151.0,0.0002697,7]
[321901399,1712599848335,-151.0,0.0002697,7]
[321901400,1712599848343,-170.080145,0.0002697,7]
[321901401,1712599848353,-170.080145,0.0002697,7]
[321901402,1712599848362,-151.0,0.0002697,7]
[321901403,1712599848372,-222.073694,0.0002697,7]
[321901404,1712599848381,-222.073694,0.0002697,7]
[321901405,1712599848390,-150.0,0.00026987,4]
[321901406,1712599848400,-4394.88612217,0.00026996,2]
[321901407,1712599848410,-207.17268662,0.00026997,2]
[321901408,1712599848420,-205.96207179,0.00026998,2]
[321901409,1712599848429,-692922.9493909,0.00026999,5]
[321901410,1712599848438,-211.15975309,0.00026999,2]
[321901411,1712599848447,-155.0,0.00026999,2]
[321901412,1712599848457,-149913.01865755,0.00026999,2]
[321901413,1712599848466,-178.422801,0.00026999,7]
[321901414,1712599848475,-178.422801,0.00026999,7]
[321901415,1712599848485,-159.402562,0.00026999,7]
[321901416,1712599848494,-159.402562,0.00026999,7]
[321901417,1712599848503,-151.0,0.00026999,7]
[321901418,1712599848512,-151.0,0.00026999,2]
[321901419,1712599848522,-151.0,0.00026999,7]
[321901420,1712599848531,-151.0,0.00026999,7]
[321901421,1712599848541,-151.0,0.00026999,7]
[321901422,1712599848550,-151.0,0.00026999,7]
[321901423,1712599848559,-312.259531,0.00026999,7]
[321901424,1712599848569,-312.259531,0.00026999,7]
[321901425,1712599848578,-312.259531,0.00026999,7]
[321901426,1712599848587,-312.259531,0.00026999,7]
[321901427,1712599848597,-283.37207,0.00026999,7]
[321901428,1712599848606,-283.37207,0.00026999,7]
[321901429,1712599848618,-283.37207,0.00026999,7]
[321901430,1712599848628,-283.37207,0.00026999,7]
[321901431,1712599848638,-205.381336,0.00026999,7]
[321901432,1712599848647,-151.0,0.00026999,7]
[321901433,1712599848657,-151.0,0.00026999,7]
[321901434,1712599848666,-151.0,0.00026999,7]
[321901435,1712599848675,-209.130756,0.00026999,7]
[321901436,1712599848684,-170.080145,0.00026999,7]
[321901437,1712599848693,-170.080145,0.00026999,7]
[321901438,1712599848703,-151.0,0.00026999,7]
[321901439,1712599848712,-222.073694,0.00026999,7]
[321901440,1712599848721,-222.073694,0.00026999,7]
[321901441,1712599848730,-151.0,0.00026999,7]
[321901442,1712599848740,-173346.65999767,0.00027,2]
[321901443,1712599848748,-300.0,0.00027,2]
[321901444,1712599848758,-7200.0,0.00027,2]
[321901445,1712599848767,-188.3420924,0.00027,4]
[321901446,1712599848776,-1724.93,0.00027,2]
[321901447,1712599848785,-5000.0,0.00027,7]
[321901448,1712599848795,-781.38,0.00027,2]
[321901449,1712599848803,-1000.0,0.00027,2]
[321901450,1712599848813,-178.422801,0.00027,7]
[321901451,1712599848822,-178.422801,0.00027,7]
[321901452,1712599848832,-178.422801,0.00027,7]
[321901453,1712599848847,-178.422801,0.00027,7]
[321901454,1712599848856,-159.402562,0.00027,7]
[321901455,1712599848865,-159.402562,0.00027,7]
[321901456,1712599848874,-159.402562,0.00027,7]
[321901457,1712599848883,-159.402562,0.00027,7]
[321901458,1712599848893,-287.790304,0.00027,7]
[321901459,1712599848903,-151.0,0.00027,2]
[321901460,1712599848912,-151.0,0.00027,2]
[321901461,1712599848922,-312.259531,0.00027,7]
[321901462,1712599848932,-312.259531,0.00027,7]
[321901463,1712599848941,-283.37207,0.00027,7]
[321901464,1712599848950,-283.37207,0.00027,7]
[321901465,1712599848959,-151.0,0.00027,7]
[321901466,1712599848968,-151.0,0.00027,7]
[321901467,1712599848977,-151.0,0.00027,7]
[321901468,1712599848986,-210.50916,0.00027,7]
[321901469,1712599848995,-170.080145,0.00027,7]
[321901470,1712599849004,-170.080145,0.00027,7]
[321901471,1712599849013,-170.080145,0.00027,7]
[321901472,1712599849022,-170.080145,0.00027,7]
[321901473,1712599849031,-151.0,0.00027,7]
[321901474,1712599849040,-151.0,0.00027,7]
[321901475,1712599849049,-222.073694,0.00027,7]
[321901476,1712599849058,-222.073694,0.00027,7]
[321901477,1712599849067,-222.073694,0.00027,7]
[321901478,1712599849076,-222.073694,0.00027,7]
[321901479,1712599849088,-239.952505,0.00027,7]
[321901480,1712599849105,-150.0,0.00027005,2]
[321901481,1712599849114,-150.0,0.00027005,2]
[321901482,1712599849124,-150.0,0.00027005,2]
[321901483,1712599849133,-277.0,0.00027005,2]
[321901484,1712599849142,-150.65,0.00027005,2]
[321901485,1712599849156,-1307.057,0.00027005,2]
[321901486,1712599849166,-458.0,0.00027005,2]
[321901487,1712599849175,-1227.0,0.00027005,2]
[321901488,1712599849184,-1251.0,0.00027005,2]
[321901489,1712599849193,-1944.0,0.00027005,2]
[321901490,1712599849202,-435.0,0.00027005,2]
[321901491,1712599849211,-324.213,0.00027005,2]
[321901492,1712599849220,-278.0,0.00027005,2]
[321901493,1712599849229,-1139.0,0.00027005,2]
[321901494,1712599849239,-1812.426,0.00027005,2]
[321901495,1712599849248,-1465.0,0.00027005,2]
[321901496,1712599849258,-150.0,0.00027005,2]
[321901497,1712599849267,-398.0,0.00027005,2]
[321901498,1712599849276,-1435.025,0.00027005,2]
[321901499,1712599849285,-1634.0,0.00027005,2]
[321901500,1712599849294,-214.0,0.00027005,2]
[321901501,1712599849302,-354.0,0.00027005,2]
[321901502,1712599849312,-442.0,0.00027005,2]
[321901503,1712599849321,-150.0,0.00027015,2]
[321901504,1712599849330,-152.32963547,0.00027043,2]
[321901505,1712599849338,-674.06,0.00027045,2]
[321901506,1712599849347,-162.18,0.00027045,2]
[321901507,1712599849357,-162.18,0.00027045,2]
[321901508,1712599849367,-162.18,0.00027045,2]
[321901509,1712599849377,-162.18,0.00027045,2]
[321901510,1712599849386,-335.05,0.00027045,2]
[321901511,1712599849395,-187.79,0.00027068,15]
[321901512,1712599849404,-385.04000557,0.00027097,2]
[321901513,1712599849413,-3425.19,0.00027123,2]
[321901514,1712599849421,-11018.12,0.00027123,2]
[321901515,1712599849431,-150.0,0.00027136,2]
[321901516,1712599849440,-178.37267438,0.00027149,2]
[321901517,1712599849449,-150.5,0.00027167,15]
[321901518,1712599849459,-440.0,0.00027167,15]
[321901519,1712599849468,-152.73989447,0.0002717,2]
[321901520,1712599849477,-150.5,0.00027177,15]
[321901521,1712599849486,-440.0,0.00027177,15]
[321901522,1712599849495,-150.5,0.00027187,15]
[321901523,1712599849505,-440.0,0.00027187,15]
[321901524,1712599849514,-30000.0,0.0002719,2]
[321901525,1712599849523,-167394.13580101,0.00027193,2]
[321901526,1712599849532,-178.422801,0.00027193,7]
[321901527,1712599849541,-178.422801,0.00027193,7]
[321901528,1712599849550,-159.402562,0.00027193,7]
[321901529,1712599849559,-159.402562,0.00027193,7]
[321901530,1712599849568,-172.83882,0.00027193,2]
[321901531,1712599849578,-312.259531,0.00027193,7]
[321901532,1712599849587,-312.259531,0.00027193,7]
[321901533,1712599849596,-283.37207,0.00027193,7]
[321901534,1712599849606,-283.37207,0.00027193,7]
[321901535,1712599849615,-151.0,0.00027193,7]
[321901536,1712599849624,-170.080145,0.00027193,7]
[321901537,1712599849634,-170.080145,0.00027193,7]
[321901538,1712599849643,-196.272199,0.00027193,7]
[321901539,1712599849653,-222.073694,0.00027193,7]
[321901540,1712599849663,-222.073694,0.00027193,7]
[321901541,1712599849672,-167.18,0.00027196,2]
[321901542,1712599849682,-1403028.63703474,0.00027197,2]
[321901543,1712599851068,-748.27539944,0.00020998,2]
[321901544,1712599851078,-1047.30959607,0.00020998,2]
[321901545,1712599851088,-363.52295282,0.00020998,2]
[321901546,1712599851097,-1000.0,0.00020998,2]
[321901547,1712599851107,-151.0,0.00024,7]
[321901548,1712599851116,-855.80905,0.00024144,2]
[321901549,1712599851126,-2079.36923431,0.00024329,2]
[321901550,1712599851142,-111.02892734,0.00024329,2]
[321901551,1712599851151,-198.97324266,0.0002503,2]
[321901552,1712599851175,-656.83580734,0.0002503,2]
[321901553,1712599851185,-406.210607,0.00025398,7]
[321901554,1712599851194,-406.210607,0.000255,7]
[321901555,1712599851203,-406.210607,0.00026,7]
[321901556,1712599851213,-855.80905,0.0002628,2]
[321901557,1712599851222,-406.210607,0.000269,7]
[321901558,1712599851232,-406.210607,0.00026999,7]
[321901559,1712599851242,-406.210607,0.00027,7]
[321901560,1712599851251,-406.210607,0.00027,7]
[321901561,1712599851260,-406.210607,0.00027193,7]
[321901562,1712599851270,-26978.97145161,0.00027197,2]
[321901563,1712599851294,-32168.3576172,0.00027197,2]
[321901564,1712599851452,-406.210607,0.00024,7]
[321901565,1712599851461,-709.28574161,0.00027197,2]
[321901566,1712599851477,-1116.99427446,0.00027197,2]
[321901567,1712599851489,-4048.99318825,0.00027197,2]
[321901568,1712599851505,-291.2772942,0.00027197,2]
[321901569,1712599851516,-14398.240503,0.00027197,2]
[321901570,1712599855507,315.50843989,0.00027061,30]
[321901572,1712599871629,510.24,0.00017418,2]
[321901576,1712600253923,164.31,0.00024329,15]
[321901577,1712600601366,25000.0,0.00028,20]
[321901578,1712600615378,-707.83928995,0.00019051,2]
[321901579,1712600615403,-1507.53401124,0.00019052,2]
[321901580,1712600615428,-2462.68515412,0.00019052,2]
[321901581,1712600615453,-23297.98636349,0.00019052,2]
[321901582,1712600615479,-4312.61714156,0.00019053,2]
[321901583,1712600615503,-779.51255381,0.00019054,2]
[321901584,1712600615528,-500.0,0.00019054,2]
[321901585,1712600615553,-451.70299826,0.00019054,2]
[321901586,1712600615577,-363.52295282,0.00019055,2]
[321901587,1712600615600,-1000.0,0.00019055,2]
[321901588,1712600633124,261.13133826,0.00017952,2]
[321901589,1712600633570,195.17016549,0.00018952,2]
[321901590,1712600678530,600.0,0.00018952,2]
[321901591,1712600692815,2534.66758285,0.00014214,2]
[321901592,1712600695730,1025.63044815,0.00018952,2]
[321901595,1712600707371,-345.82406634,0.00018952,2]
[321901596,1712600714776,2035.5961233,0.00014214,2]
[321901598,1712600750836,287.80437565,0.00014214,2]
[321901599,1712600756250,1742.66031984,0.00014214,2]
[321901600,1712600766680,286.76854359,0.00014214,2]
[321901601,1712600806417,-1000.0,0.00018947,2]
[321901602,1712600806440,-1507.53401124,0.00018948,2]
[321901603,1712600806460,-8884.61561225,0.00018949,2]
[321901604,1712600806481,-2462.68515412,0.0001895,2]
[321901605,1712600806503,-750.0,0.00018952,2]
[321901606,1712600806599,154.04,0.00024329,15]
[321901607,1712600820684,2462.68515412,0.00018947,2]
[321901629,1712600892984,25000.0,0.00028,20]
[321901634,1712600931696,21527.35587506,0.00028,20]
[321901667,1712601032385,-2462.68515412,0.00019084,2]
[321901669,1712601032395,-785.42521986,0.00019085,2]
[321901671,1712601032405,-1000.0,0.00019086,2]
[321901673,1712601032415,-150.0,0.00019093,2]
[321901676,1712601032425,-784.91646017,0.00019094,2]
[321901678,1712601032435,-403.44323911,0.00019094,2]
[321901680,1712601032446,-116.39308955,0.00019096,2]
[321901683,1712601032473,-493.7006685,0.00019096,2]
[321901687,1712601032501,-1738.88258862,0.00019096,2]
[321901689,1712601032511,-1491.75043204,0.00019096,2]
[321901693,1712601032534,-1742.43485051,0.00019096,2]
[321901707,1712601032673,-4137.32125515,0.00019096,2]
[321901708,1712601032682,-155.0,0.00019096,2]
[321901709,1712601032692,-1339.36288439,0.00019097,2]
[321901710,1712601032701,-11892.81824244,0.00019098,2]
[321901730,1712601038049,-304.38878849,0.00019083,2]
[321901731,1712601038058,-4418.37575223,0.00019098,2]
[321901732,1712601038070,-1617.01770056,0.00019098,2]
[321901733,1712601038079,-500.0,0.00019099,2]
[321901734,1712601038090,-319.75159024,0.00019099,2]
[321901735,1712601038102,-741.67995466,0.00019099,2]
[321901736,1712601038111,-918.16839047,0.00019099,2]
[321901737,1712601038286,-848.26710872,0.00019099,2]
[321901738,1712601038299,-2427.72450081,0.00019099,2]
[321901739,1712601038308,-1280.6,0.00019099,2]
[321901741,1712601038318,-1768.18748709,0.000191,2]
[321901742,1712601038327,-155.0,0.00019155,2]
[321901744,1712601038336,-1149.18,0.00019155,2]
[321901746,1712601038346,-2926.74,0.00019155,2]
[321901748,1712601038355,-269.89,0.00019155,2]
[321901749,1712601038366,-155.0,0.00019158,2]
[321901751,1712601038375,-499.99,0.00019158,2]
[321901753,1712601038385,-155.0,0.00019257,2]
[321901755,1712601038394,-537.76646111,0.00019369,2]
[321901757,1712601038403,-3742.644844,0.00019476,2]
[321901835,1712601039909,-6019.742456,0.00019476,2]
[321901836,1712601039919,-745.24,0.00019476,2]
[321901837,1712601039928,-150.99,0.00019476,2]
[321901838,1712601039938,-7903.16,0.00019476,2]
[321901839,1712601039947,-635.8,0.00019783,2]
[321901840,1712601039957,-930.87347016,0.00020979,2]
[321901841,1712601039966,-522.54042339,0.00020998,2]
[321901842,1712601039976,-236.01814319,0.00020998,2]
[321901843,1712601039985,-1057.50232524,0.00020998,2]
[321901844,1712601039994,-210.0,0.00021002,2]
[321901845,1712601040004,-157.84390401,0.00021083,2]